bitfinex/quotes_ETHUSD_20250806
["timestamp","ask_amount","ask_price","bid_price","bid_amount"]
[1754494939075,0.001,3651.8,3651.7,2.87525058]
[1754494939277,0.001,3651.8,3651.7,3.34615058]
[1754494939481,0.001,3651.8,3651.7,2.87525058]
[1754494939684,0.001,3651.8,3651.7,3.34615058]
[1754494940567,0.001,3651.8,3651.7,0.1368]
[1754494940947,0.4931,3651.8,3651.5,0.1368]
[1754494941343,0.4921,3651.7,3650.9,0.4427]
[1754494941545,3.4921,3651.7,3650.9,0.002]
[1754494941779,0.1368,3651.4,3650.9,0.002]
[1754494942142,0.1368,3651.6,3651.1,0.1368]
[1754494942477,0.001,3651.8,3651.5,0.1368]
[1754494942682,0.001,3651.8,3651.7,2.73845058]
[1754494943574,0.001,3651.8,3651.7,3.17915058]
[1754494944360,0.001,3651.8,3651.7,3.65665058]
[1754494944901,0.001,3651.8,3651.7,4.70682227]
[1754494945799,0.001,3651.8,3651.7,4.73420677]
[1754494946098,0.001,3651.8,3651.7,9.00482227]
[1754494946700,0.001,3651.8,3651.7,8.09045058]
[1754494948078,0.001,3651.8,3651.7,3.31595058]
[1754494948280,0.001,3651.8,3651.7,7.17025058]
[1754494949454,0.001,3651.8,3651.7,2.87525058]
[1754494949657,0.001,3651.8,3651.7,7.16825058]
[1754494949860,0.001,3651.8,3651.7,4.4298]
[1754494950075,0.4931,3651.8,3651.7,0.1368]
[1754494950364,0.001,3651.8,3651.7,0.1368]
[1754494950704,0.001,3651.8,3651.7,4.78437464]
[1754494950857,0.001,3651.8,3651.7,4.75699014]
[1754494951599,0.001,3651.8,3651.7,4.78437464]
[1754494952050,0.001,3651.8,3651.7,4.75699014]
[1754494954443,0.001,3651.8,3651.7,4.78437464]
[1754494954646,1e-08,3651.8,3651.7,4.78437464]
[1754494955027,1e-08,3651.8,3651.7,4.75699014]
[1754494955396,1e-08,3651.8,3651.7,4.86670514]
[1754494957301,1e-08,3651.8,3651.7,8.24150514]
[1754494957501,1e-08,3651.8,3651.7,9.15970514]
[1754494958596,1e-08,3651.8,3651.7,8.57249014]
[1754494958802,1e-08,3651.8,3651.7,4.27949014]
[1754494958996,1e-08,3651.8,3651.7,8.57249014]
[1754494959443,1e-08,3651.8,3651.7,8.13179014]
[1754494959601,0.49210001,3651.8,3651.7,7.16825058]
[1754494960131,0.49210001,3651.8,3651.7,2.87525058]
[1754494960336,0.49210001,3651.8,3651.1,0.4921]
[1754494960552,0.49210001,3651.8,3650.9,0.002]
[1754494960553,0.1368,3651.6,3650.9,0.002]
[1754494960757,0.1368,3651.4,3650.9,0.002]
[1754494961055,3.1368,3651.4,3650.9,0.002]
[1754494961201,0.1368,3651.1,3650.9,0.002]
[1754494961756,0.8272,3651.0,3650.9,0.002]
[1754494961898,6.56617562,3651.0,3650.9,0.002]
[1754494962768,3.8272,3651.0,3650.9,0.002]
[1754494963300,6.56617562,3651.0,3650.9,0.002]
[1754494963841,3.8272,3651.0,3650.9,0.002]
[1754494964047,6.56617562,3651.0,3650.9,0.002]
[1754494964907,8.26617562,3651.0,3650.9,0.002]
[1754494965946,8.81617562,3651.0,3650.9,0.002]
[1754494966150,36.69379362,3651.0,3650.9,0.002]
[1754494967272,6.28927573,3650.6,3650.5,0.002]
[1754494967473,38.46089373,3650.6,3650.5,0.002]
[1754494967684,39.62955854,3650.6,3650.5,0.002]
[1754494967822,41.32955854,3650.6,3650.5,0.002]
[1754494969967,3.28942581,3650.4,3650.3,1e-08]
[1754494970117,34.16704381,3650.4,3650.3,1e-08]
[1754494970329,35.13104381,3650.4,3650.3,1e-08]
[1754494970648,36.83104381,3650.4,3650.3,1e-08]
[1754494971543,37.78994381,3650.4,3650.3,1e-08]
[1754494971880,31.014418,3650.4,3650.3,1e-08]
[1754494972175,3.1368,3650.4,3650.3,0.43330001]
[1754494972378,2.73887088,3651.2,3650.3,0.91480001]
[1754494972379,0.4868,3651.2,3650.3,0.91480001]
[1754494972677,0.1368,3650.7,3650.4,0.9148]
[1754494972882,0.1368,3650.7,3650.3,1e-08]
[1754494973180,0.1368,3650.7,3650.5,0.4333]
[1754494973386,0.4868,3650.6,3650.3,1e-08]
[1754494973537,2.73940137,3650.5,3650.3,1e-08]
[1754494973906,3.4868,3650.6,3650.3,1e-08]
[1754494973907,0.1368,3650.4,3650.3,1e-08]
[1754494975038,0.1368,3650.4,3650.3,0.43330001]
[1754494975254,0.1368,3650.4,3650.3,0.91480001]
[1754494975744,0.1368,3650.7,3650.3,0.91480001]
[1754494975962,0.1368,3650.7,3650.3,2.73948993]
[1754494976167,0.1368,3650.7,3650.4,0.9148]
[1754494976542,0.1368,3650.7,3650.3,1e-08]
[1754494976745,0.1368,3650.5,3650.3,1e-08]
[1754494977577,0.1368,3650.5,3650.3,0.43330001]
[1754494978276,0.1368,3650.5,3650.4,0.4333]
[1754494978443,0.1368,3650.5,3650.4,0.9148]
[1754494978871,0.1368,3650.5,3650.3,1e-08]
[1754494979439,0.1368,3650.5,3650.4,0.9148]
[1754494979674,0.1368,3650.5,3650.4,0.4333]
[1754494980244,0.1368,3650.5,3650.3,1e-08]
[1754494980648,0.6236,3650.5,3650.3,1e-08]
[1754494980853,3.22622581,3650.4,3650.3,1e-08]
[1754494981763,3.0,3650.4,3650.3,1e-08]
[1754494982287,3.4868,3650.4,3650.3,1e-08]
[1754494982449,3.0,3650.4,3650.3,1e-08]
[1754494983385,6.22622581,3650.4,3650.3,1e-08]
[1754494984073,31.10384381,3650.4,3650.3,1e-08]
[1754494984261,34.43894381,3650.4,3650.3,1e-08]
[1754494984460,34.98894381,3650.4,3650.3,1e-08]
[1754494984862,36.68894381,3650.4,3650.3,1e-08]
[1754494987992,36.68894381,3650.4,3649.8,0.002]
[1754494987993,3.28980109,3649.9,3649.8,1e-08]
[1754494988179,38.46141909,3649.9,3649.8,1e-08]
[1754494988484,39.42011909,3649.9,3649.8,1e-08]
[1754494988693,41.12011909,3649.9,3649.8,1e-08]
[1754494988851,40.78501909,3649.9,3649.8,1e-08]
[1754494989060,41.12011909,3649.9,3649.8,1e-08]
[1754494990198,6.29010138,3649.5,3649.4,1e-08]
[1754494990497,38.59951938,3649.5,3649.4,1e-08]
[1754494990687,39.08631938,3649.5,3649.4,1e-08]
[1754494990993,41.25614611,3649.5,3649.4,1e-08]
[1754494991297,40.92104611,3649.5,3649.4,1e-08]
[1754494991495,40.37104611,3649.5,3649.4,1e-08]
[1754494991797,39.74951938,3649.5,3649.4,1e-08]
[1754494992157,31.014418,3649.5,3649.4,1e-08]
[1754494992362,4.295,3649.6,3649.4,0.91480001]
[1754494992563,5.8771955,3650.2,3649.5,0.9148]
[1754494992815,32.172618,3650.1,3649.6,0.9148]
[1754494992973,3.0,3649.8,3649.6,0.4333]
[1754494993160,5.73992163,3649.8,3649.4,1e-08]
[1754494993365,3.0,3649.6,3649.4,0.43330001]
[1754494993572,7.295,3649.5,3649.4,1e-08]
[1754494994795,7.295,3649.5,3649.4,0.43330001]
[1754494995329,3.0,3649.5,3649.4,0.91480001]
[1754494995810,4.295,3649.5,3649.4,0.91480001]
[1754494996161,4.295,3649.5,3649.4,3.65497647]
[1754494996388,1.7,3650.3,3649.4,0.91480001]
[1754494996599,3.0,3650.1,3649.5,0.9148]
[1754494996804,3.0,3649.9,3649.5,0.4815]
[1754494997007,4.295,3649.8,3649.6,0.9148]
[1754494997180,4.295,3649.8,3649.7,0.9148]
[1754494998204,1.7,3650.3,3649.7,3.65471784]
[1754494998406,3.0,3650.1,3649.8,0.9148]
[1754494998578,9.32331845,3650.6,3649.8,0.9148]
[1754494998579,3.0,3649.9,3649.8,0.9148]
[1754495000390,3.0,3649.9,3649.5,0.4815]
[1754495000597,4.295,3649.8,3649.4,0.43330001]
[1754495000817,4.295,3649.8,3649.5,0.4333]
[1754495001014,4.295,3649.8,3649.4,0.46010001]
[1754495001225,4.295,3649.8,3649.5,0.4628]
[1754495002438,0.1368,3649.7,3649.5,0.4628]
[1754495002586,0.1368,3649.7,3649.4,1e-08]
[1754495002791,0.1368,3649.7,3649.4,0.46280001]
[1754495003541,0.1368,3649.7,3649.4,1e-08]
[1754495003685,0.1368,3649.7,3649.5,0.4628]
[1754495003888,0.1368,3649.7,3649.6,0.4628]
[1754495004189,0.1368,3649.7,3649.6,0.9229]
[1754495004703,0.1368,3649.7,3649.4,1e-08]
[1754495004902,0.1368,3649.7,3649.5,0.4628]
[1754495005205,0.1368,3649.7,3649.6,0.4628]
[1754495005406,3.1368,3649.7,3649.4,1e-08]
[1754495005606,0.484,3649.6,3649.4,1e-08]
[1754495005822,4.4308,3649.5,3649.4,1e-08]
[1754495006298,4.4308,3649.5,3649.4,0.46010001]
[1754495006624,4.4308,3649.5,3649.4,0.92290001]
[1754495006937,4.4308,3649.5,3649.4,0.46280001]
[1754495007139,4.294,3649.5,3649.4,0.46280001]
[1754495008839,4.294,3649.5,3649.4,1e-08]
[1754495009631,7.778,3649.5,3649.4,1e-08]
[1754495009792,7.294,3649.5,3649.4,1e-08]
[1754495010193,7.778,3649.5,3649.4,1e-08]
[1754495010594,7.294,3649.5,3649.4,1e-08]
[1754495011897,10.51810138,3649.5,3649.4,1e-08]
[1754495014146,12.21810138,3649.5,3649.4,1e-08]
[1754495014997,40.98081938,3649.5,3649.4,1e-08]
[1754495015715,40.64571938,3649.5,3649.4,1e-08]
[1754495016029,40.64471938,3649.5,3649.4,1e-08]
[1754495016241,37.64471938,3649.5,3649.4,1e-08]
[1754495016836,5.993,3649.5,3649.4,0.46280001]
[1754495017041,4.777,3649.5,3649.4,1e-08]
[1754495017549,4.9138,3649.5,3649.4,1e-08]
[1754495017754,0.1368,3649.5,3649.4,1e-08]
[1754495017960,4.4298,3649.5,3649.4,1e-08]
[1754495019308,0.1368,3649.5,3649.4,0.92290001]
[1754495019506,4.293,3649.5,3649.4,0.92290001]
[1754495019702,3.42833881,3650.4,3649.4,0.92290001]
[1754495019703,0.001,3650.4,3649.4,0.92290001]
[1754495019928,0.1368,3650.2,3649.8,2.73987187]
[1754495020232,4.293,3650.1,3649.9,0.4628]
[1754495021208,4.293,3650.1,3650.0,0.4628]
[1754495021403,4.293,3650.1,3649.4,1e-08]
[1754495021717,0.1368,3650.0,3649.6,0.4628]
[1754495021930,0.1368,3650.0,3649.7,0.4628]
[1754495022251,4.293,3649.9,3649.8,3.66277615]
[1754495022956,4.293,3649.9,3649.8,0.9229]
[1754495023259,4.293,3649.9,3649.8,0.4628]
[1754495023542,4.293,3649.9,3649.5,2.87682802]
[1754495023832,4.293,3649.9,3649.6,3.20280984]
[1754495024037,4.293,3649.9,3649.6,0.4628]
[1754495024239,4.293,3649.9,3649.5,0.5969]
[1754495024240,4.293,3649.9,3649.7,2.73989326]
[1754495024407,4.293,3649.9,3649.8,3.66277615]
[1754495024610,0.001,3650.3,3649.9,2.73980014]
[1754495024918,4.4288,3650.2,3649.9,0.9229]
[1754495025118,4.4288,3650.2,3650.0,0.4601]
[1754495025313,7.4288,3650.2,3650.1,0.4628]
[1754495025730,7.4288,3650.2,3649.7,3.33681874]
[1754495025931,7.4288,3650.2,3649.8,3.66277506]
[1754495026129,0.1368,3650.2,3650.1,2.73965096]
[1754495026442,0.001,3650.3,3650.2,2.73957591]
[1754495026804,0.001,3650.3,3650.2,3.66247591]
[1754495027239,0.001,3650.3,3650.2,0.9229]
[1754495027441,0.001,3650.3,3650.2,0.4628]
[1754495029449,0.001,3650.3,3650.0,0.1368]
[1754495029624,0.485,3650.3,3649.7,3.20270761]
[1754495029825,0.001,3650.3,3649.8,0.1368]
[1754495030029,0.485,3650.3,3649.8,0.5996]
[1754495030235,0.485,3650.3,3649.9,0.4628]
[1754495030436,0.001,3650.3,3649.9,0.4628]
[1754495030949,0.001,3650.3,3650.0,0.4628]
[1754495031149,3.001,3650.3,3649.8,0.1368]
[1754495031317,3.4646,3650.3,3649.8,0.5842]
[1754495031647,3.001,3650.3,3649.9,0.4474]
[1754495031944,3.001,3650.3,3649.8,0.1368]
[1754495032145,0.4636,3650.2,3649.8,0.1368]
[1754495032338,0.4636,3650.2,3649.6,0.4741]
[1754495032649,0.4636,3650.2,3649.4,1e-08]
[1754495032828,0.1368,3649.6,3649.4,1e-08]
[1754495033348,0.1368,3649.6,3649.5,0.4474]
[1754495033842,0.1368,3649.6,3649.4,1e-08]
[1754495034226,0.1368,3649.6,3649.4,0.44740001]
[1754495034746,0.1368,3649.6,3649.4,1e-08]
[1754495035844,0.1368,3649.6,3649.5,0.4474]
[1754495036626,0.1368,3649.6,3649.4,1e-08]
[1754495037151,0.1368,3649.6,3649.4,3.18757444]
[1754495037447,3.1368,3650.0,3649.4,0.13680001]
[1754495037622,3.6004,3650.0,3649.4,0.58420001]
[1754495037816,0.4636,3649.9,3649.4,0.13680001]
[1754495038113,0.1368,3649.6,3649.4,1e-08]
[1754495039133,0.1368,3649.6,3649.4,0.44740001]
[1754495039624,0.1088,3649.6,3649.4,1e-08]
[1754495039820,0.5724,3649.6,3649.4,1e-08]
[1754495040326,0.4636,3649.5,3649.4,1e-08]
[1754495041051,0.1088,3649.6,3649.4,1e-08]
[1754495041251,0.4636,3649.5,3649.4,1e-08]
[1754495042161,6.20370138,3649.5,3649.4,1e-08]
[1754495042456,34.41641938,3649.5,3649.4,1e-08]
[1754495043250,34.96641938,3649.5,3649.4,1e-08]
[1754495043960,3.29032664,3649.2,3649.1,1e-08]
[1754495044163,39.03516006,3649.2,3649.1,1e-08]
[1754495044460,39.83386006,3649.2,3649.1,1e-08]
[1754495044863,3.29070216,3648.7,3648.6,0.002]
[1754495045070,38.45832016,3648.7,3648.6,0.002]
[1754495045230,39.39382016,3648.7,3648.6,0.002]
[1754495046460,35.10382016,3648.7,3648.6,0.002]
[1754495046662,7.29,3648.7,3648.6,0.002]
[1754495047532,7.7536,3648.7,3648.6,0.002]
[1754495047866,39.25702016,3648.7,3648.6,0.002]
[1754495048641,11.37940216,3648.7,3648.6,0.002]
[1754495048845,39.25702016,3648.7,3648.6,0.002]
[1754495049259,27.877618,3648.7,3648.6,0.002]
[1754495049451,32.167618,3648.7,3648.6,0.002]
[1754495049653,4.29,3648.7,3648.6,0.002]
[1754495050238,4.29,3648.7,3648.6,0.4494]
[1754495050460,3.0,3648.7,3648.6,0.9235]
[1754495050744,4.29,3648.7,3648.6,0.9235]
[1754495051143,3.0,3649.5,3648.6,0.9235]
[1754495051344,3.0,3649.3,3648.7,0.9215]
[1754495051545,3.0,3649.3,3648.7,0.4741]
[1754495051740,3.0,3649.3,3648.8,0.4474]
[1754495051944,6.585,3649.6,3648.9,0.4741]
[1754495052142,32.167618,3649.5,3649.0,0.4474]
[1754495052459,27.877618,3649.4,3649.0,0.4474]
[1754495052652,27.877618,3649.4,3648.7,2.74067284]
[1754495052852,27.877618,3649.4,3649.0,0.4474]
[1754495053152,3.0,3649.3,3648.8,0.4741]
[1754495053362,3.0,3649.1,3648.8,0.4474]
[1754495053567,3.0,3649.1,3648.9,0.4474]
[1754495054076,3.20372157,3649.5,3648.9,0.4474]
[1754495054077,4.29,3649.0,3648.9,0.4474]
[1754495054262,4.29,3649.0,3648.8,0.4741]
[1754495054467,4.7536,3649.0,3648.6,0.002]
[1754495054675,4.7536,3649.0,3648.6,0.4494]
[1754495055249,0.4636,3648.9,3648.6,0.002]
[1754495055799,4.29,3648.8,3648.7,0.9215]
[1754495056644,4.29,3648.8,3648.7,1.0583]
[1754495057045,0.1368,3649.2,3648.7,1.0583]
[1754495057246,4.29,3649.1,3648.7,0.1368]
[1754495057446,4.29,3649.1,3648.8,0.9215]
[1754495057681,4.29,3649.1,3648.7,0.1368]
[1754495057893,4.29,3649.1,3648.8,0.4474]
[1754495058185,7.289,3649.0,3648.9,0.4474]
[1754495058395,0.20978962,3650.1,3649.1,2.74040174]
[1754495058684,0.1368,3649.6,3649.2,0.9215]
[1754495058846,4.289,3649.5,3649.3,0.4474]
[1754495059051,4.289,3649.5,3649.1,0.5842]
[1754495059276,4.289,3649.5,3649.1,0.1368]
[1754495059462,4.289,3649.5,3649.2,0.4474]
[1754495060884,4.289,3649.5,3648.8,0.9365]
[1754495061066,0.1368,3649.1,3648.8,0.9365]
[1754495061282,4.289,3649.0,3648.6,2.87954415]
[1754495061468,4.289,3649.0,3648.9,0.9248]
[1754495063768,4.289,3649.0,3648.9,0.4624]
[1754495063979,4.289,3649.0,3648.6,0.1388]
[1754495064207,4.289,3649.0,3648.7,0.4624]
[1754495064613,4.289,3649.0,3648.6,0.1388]
[1754495064992,4.289,3649.0,3648.6,0.6012]
[1754495065312,4.289,3649.0,3648.6,0.4644]
[1754495065676,4.7818,3649.0,3648.6,0.4644]
[1754495066713,0.6296,3648.9,3648.6,0.002]
[1754495066917,0.1368,3648.7,3648.6,0.002]
[1754495067126,4.4248,3648.7,3648.6,0.002]
[1754495068019,7.65830216,3648.7,3648.6,0.002]
[1754495068382,35.53592016,3648.7,3648.6,0.002]
[1754495068919,4.9176,3648.7,3648.6,0.002]
[1754495069420,4.9176,3648.7,3648.6,0.9268]
[1754495069421,4.288,3648.7,3648.6,0.9268]
[1754495069626,3.4928,3649.6,3648.6,0.9268]
[1754495069627,0.1368,3649.1,3648.6,1.0636]
[1754495069835,0.1368,3649.1,3648.7,0.9248]
[1754495069836,4.287,3649.0,3648.7,0.9248]
[1754495069996,1.7,3649.8,3649.0,2.74042688]
[1754495070185,3.1368,3649.6,3649.1,0.9248]
[1754495070380,0.1368,3649.6,3649.2,0.4624]
[1754495070685,0.1368,3649.6,3649.0,2.877248]
[1754495070686,3.1368,3649.6,3649.3,0.4624]
[1754495070907,0.1368,3649.6,3649.4,0.9248]
[1754495071124,0.4928,3650.1,3649.1,2.74040174]
[1754495071285,0.1368,3649.9,3649.4,0.1368]
[1754495071491,3.1368,3649.9,3649.4,0.1368]
[1754495071728,3.1368,3649.9,3649.5,0.9248]
[1754495071929,3.1368,3649.9,3649.5,0.4624]
[1754495072103,3.1368,3649.9,3649.6,0.4624]
[1754495073423,3.1368,3649.9,3649.4,0.1368]
[1754495073725,0.4928,3649.8,3649.3,0.4624]
[1754495073908,4.287,3649.7,3649.3,0.4624]
[1754495074241,11.0265164,3650.3,3649.4,0.9248]
[1754495074242,6.587,3650.3,3649.4,0.9248]
[1754495074551,0.001,3649.9,3649.7,2.73992919]
[1754495075020,0.001,3649.9,3649.8,0.9248]
[1754495075232,0.001,3649.9,3649.8,0.4624]
[1754495075891,0.001,3649.9,3649.8,0.9248]
[1754495076236,4.9166,3649.9,3649.3,0.1368]
[1754495076436,4.4238,3649.9,3649.4,0.4624]
[1754495076619,0.1378,3649.9,3649.6,2.73997477]
[1754495076810,0.001,3649.9,3649.7,0.9248]
[1754495077220,0.001,3649.9,3649.8,0.4624]
[1754495078532,0.001,3649.9,3649.6,2.87680108]
[1754495078836,0.001,3649.9,3649.6,0.1368]
[1754495079034,0.001,3649.9,3649.8,2.73987615]
[1754495079332,0.001,3649.9,3649.7,0.9248]
[1754495079333,4.287,3649.9,3649.7,0.9248]
[1754495079517,4.287,3649.9,3649.8,3.66467615]
[1754495079839,0.001,3649.9,3649.8,3.80147615]
[1754495081840,0.001,3649.9,3649.8,3.82887491]
[1754495083822,0.001,3649.9,3649.8,8.11387491]
[1754495083994,0.001,3649.9,3649.8,8.08647615]
[1754495084199,0.001,3649.9,3649.8,9.20714155]
[1754495085631,0.001,3649.9,3649.8,13.48714155]
[1754495086495,0.001,3650.3,3649.8,21.32057317]
[1754495086713,0.001,3650.3,3650.2,2.73957591]
[1754495086913,0.001,3650.3,3650.2,7.16037591]
[1754495087114,0.001,3650.3,3650.2,9.86963925]
[1754495090849,0.001,3650.3,3650.2,5.12323925]
[1754495091017,0.4947,3650.3,3650.2,2.87637591]
[1754495091369,0.4947,3650.3,3650.2,0.1368]
[1754495092429,0.4947,3650.3,3649.8,7.02182088]
[1754495092607,0.4947,3650.3,3650.0,0.1368]
[1754495094549,0.4937,3650.2,3650.0,0.1368]
[1754495094943,0.4937,3650.1,3650.0,0.1368]
[1754495096614,0.001,3650.3,3650.0,0.1368]
[1754495096814,0.001,3650.3,3650.0,2.87647781]
[1754495097019,0.001,3650.3,3650.0,3.32047781]
[1754495097219,0.001,3650.3,3650.1,0.444]
[1754495097537,0.001,3650.3,3650.2,2.87637591]
[1754495097730,0.001,3650.3,3650.2,3.32037591]
[1754495098549,0.001,3650.3,3650.2,3.78117591]
[1754495099119,0.001,3650.3,3650.2,4.43345923]
[1754495099810,0.001,3650.3,3650.2,4.46085498]
[1754495100013,0.001,3650.3,3650.2,4.43345923]
[1754495100459,0.001,3650.3,3650.2,4.46085498]
[1754495100711,1e-08,3650.3,3650.2,4.46085498]
[1754495101973,1e-08,3650.3,3650.2,8.71345923]
[1754495102192,1e-08,3650.3,3650.2,4.43345923]
[1754495102338,1e-08,3650.3,3650.2,8.71345923]
[1754495102538,1e-08,3650.3,3650.2,3.97265923]
[1754495102789,1e-08,3650.3,3650.2,8.71345923]
[1754495103165,1e-08,3650.3,3650.2,8.25265923]
[1754495103479,1e-08,3650.3,3650.2,2.87637591]
[1754495103635,0.49370001,3650.3,3650.2,7.15637591]
[1754495103835,0.49370001,3650.3,3650.2,0.1368]
[1754495104254,0.49370001,3650.3,3650.2,2.87637591]
[1754495104870,0.49370001,3650.3,3650.2,0.1368]
[1754495105239,0.49370001,3650.3,3650.2,2.87637591]
[1754495105974,0.49370001,3650.3,3650.2,0.1368]
[1754495106375,0.49370001,3650.3,3649.9,2.74177018]
[1754495106674,0.4937,3650.2,3650.0,0.1368]
[1754495106871,0.4937,3650.2,3649.9,0.002]
[1754495106872,0.8288,3650.2,3649.9,0.002]
[1754495107075,0.3351,3650.1,3649.9,0.002]
[1754495107238,0.9656,3650.1,3649.9,0.002]
[1754495107638,0.4937,3650.0,3649.9,0.002]
[1754495107879,0.4937,3650.0,3649.9,2.74180109]
[1754495108052,0.4937,3650.0,3649.9,0.002]
[1754495108741,0.4937,3650.0,3649.9,2.74180109]
[1754495109954,0.4937,3650.0,3649.9,0.002]
[1754495112186,34.44614402,3650.0,3649.9,0.002]
[1754495112345,34.99614402,3650.0,3649.9,0.002]
[1754495112684,36.69614402,3650.0,3649.9,0.002]
[1754495114156,40.97414402,3650.0,3649.9,0.002]
[1754495115585,41.17606795,3650.0,3649.9,0.002]
[1754495118063,41.22906795,3650.0,3649.9,0.002]
[1754495118267,41.22906795,3650.0,3649.9,1e-08]
[1754495118466,41.63559221,3650.0,3649.9,1e-08]
[1754495119116,6.2900263,3649.6,3649.5,0.002]
[1754495119318,34.1676443,3649.6,3649.5,0.002]
[1754495119686,36.6964443,3649.6,3649.5,0.002]
[1754495120315,36.3613443,3649.6,3649.5,0.002]
[1754495120471,40.6393443,3649.6,3649.5,0.002]
[1754495121887,40.9744443,3649.6,3649.5,0.002]
[1754495122221,41.1112443,3649.6,3649.5,0.002]
[1754495122718,40.7761443,3649.6,3649.5,0.002]
[1754495123311,8.99434359,3649.6,3649.5,0.002]
[1754495123474,12.47599415,3649.6,3649.5,0.002]
[1754495124008,13.06946989,3649.6,3649.5,0.002]
[1754495124996,2.74055194,3648.9,3648.8,0.002]
[1754495125196,7.01855194,3648.9,3648.8,0.002]
[1754495125508,10.64985194,3648.9,3648.8,0.002]
[1754495125823,12.34985194,3648.9,3648.8,0.002]
[1754495126321,40.22746994,3648.9,3648.8,0.002]
[1754495126617,39.73296994,3648.9,3648.8,0.002]
[1754495127022,40.22746994,3648.9,3648.8,0.002]
[1754495129135,40.36410231,3648.9,3648.8,0.002]
[1754495129633,1.0,3648.9,3648.8,0.9171]
[1754495129842,0.049,3649.0,3648.8,3.65772705]
[1754495130126,4.277,3649.4,3648.9,0.8374]
[1754495130419,1.0,3649.6,3649.3,2.74025155]
[1754495130625,1.0,3649.6,3649.5,2.74010138]
[1754495130781,1.0,3649.6,3649.5,3.52850138]
[1754495131528,1.0,3649.6,3649.5,0.7884]
[1754495131701,1.0,3649.6,3649.5,3.52850138]
[1754495132088,1.0,3649.6,3649.5,0.7884]
[1754495132426,1.0,3649.6,3649.5,4.18279076]
[1754495132584,1.0,3649.6,3649.5,3.52850138]
[1754495132786,1.0,3649.6,3649.5,0.7884]
[1754495132984,1.0,3649.6,3649.5,3.52850138]
[1754495133513,1.0,3649.6,3649.5,0.7884]
[1754495133717,1.0,3649.6,3649.5,1.44269065]
[1754495134723,1.0,3649.6,3649.5,1.10719065]
[1754495134926,1.0,3649.6,3649.5,0.4529]
[1754495135290,1.0,3649.6,3649.2,0.4529]
[1754495135552,1.0,3649.6,3649.3,0.4529]
[1754495136202,2.0,3649.6,3649.3,0.4529]
[1754495136524,4.74003665,3649.6,3649.3,0.4529]
[1754495136729,5.23453665,3649.6,3649.0,0.4529]
[1754495136924,2.4945,3649.6,3649.0,0.4529]
[1754495137124,2.4945,3649.6,3649.0,0.80620859]
[1754495137421,0.4945,3649.5,3648.8,0.002]
[1754495137727,7.01622812,3649.4,3648.8,0.002]
[1754495137924,2.74026844,3649.3,3648.8,0.002]
[1754495138330,3.23476844,3649.3,3648.9,0.4529]
[1754495138532,0.4945,3649.3,3648.9,0.4529]
[1754495138731,3.23480323,3649.3,3648.9,0.4529]
[1754495139031,3.23478453,3649.3,3648.9,0.4529]
[1754495139198,0.4945,3649.3,3648.9,0.4529]
[1754495139399,2.74052831,3649.0,3648.8,0.002]
[1754495139599,7.15335194,3648.9,3648.8,0.002]
[1754495139824,11.09895194,3648.9,3648.8,0.002]
[1754495140302,38.97656994,3648.9,3648.8,0.002]
[1754495141201,38.52546994,3648.9,3648.8,0.002]
[1754495141399,40.67656994,3648.9,3648.8,0.002]
[1754495142741,12.79895194,3648.9,3648.8,0.002]
[1754495142945,13.34895194,3648.9,3648.8,0.002]
[1754495143145,41.22656994,3648.9,3648.8,0.002]
[1754495143308,6.29062705,3648.8,3648.6,1e-08]
[1754495143503,6.42750216,3648.7,3648.6,1e-08]
[1754495143737,34.30512016,3648.7,3648.6,1e-08]
[1754495143939,36.00512016,3648.7,3648.6,1e-08]
[1754495144440,35.45512016,3648.7,3648.6,1e-08]
[1754495144606,39.73012016,3648.7,3648.6,1e-08]
[1754495145623,40.28012016,3648.7,3648.6,1e-08]
[1754495145825,39.73012016,3648.7,3648.6,1e-08]
[1754495146043,35.45512016,3648.7,3648.6,1e-08]
[1754495146215,39.73012016,3648.7,3648.6,1e-08]
[1754495146415,40.22462016,3648.7,3648.6,1e-08]
[1754495146918,3.0,3648.5,3647.9,1e-08]
[1754495147117,0.1368,3648.2,3647.9,1e-08]
[1754495147317,4.275,3648.1,3647.9,1e-08]
[1754495147517,4.7695,3648.1,3647.7,0.08880001]
[1754495147718,4.7695,3648.1,3647.7,0.54170001]
[1754495147913,3.23573461,3648.0,3647.6,0.002]
[1754495148137,0.1368,3647.8,3647.6,0.002]
[1754495148346,4.275,3647.7,3647.6,0.4549]
[1754495148547,4.275,3647.7,3647.6,0.002]
[1754495149542,7.51095351,3647.7,3647.6,0.002]
[1754495149744,4.7695,3647.7,3647.6,0.002]
[1754495149942,4.275,3647.7,3647.6,0.002]
[1754495150139,0.1368,3647.8,3647.6,0.002]
[1754495150346,4.275,3647.7,3647.6,0.4549]
[1754495151955,4.275,3647.7,3647.6,0.7906]
[1754495152153,4.275,3647.9,3647.7,2.74141161]
[1754495152367,0.1368,3648.2,3647.8,0.7834]
[1754495152669,4.275,3648.1,3647.9,2.74127509]
[1754495152950,4.275,3648.1,3648.0,0.4477]
[1754495153161,4.275,3648.1,3648.0,0.7834]
[1754495153942,4.275,3648.1,3648.0,3.52462807]
[1754495154170,4.275,3648.1,3648.0,1.46038575]
[1754495154379,4.4118,3648.4,3648.0,1.46038575]
[1754495154536,4.4118,3648.4,3647.8,0.1368]
[1754495154737,4.4118,3648.4,3648.1,2.74112739]